fUSD/lending_fUSD_20240831
["ID","MTS","AMOUNT","RATE_DAILY","PERIOD"]
[336758261,1725102640630,-261.5692,0.000249,2]
[336758262,1725102640639,-326.58827628,0.000249,2]
[336758263,1725102640648,-1303.11142386,0.000249,2]
[336758264,1725102640657,-1000.0,0.0002497,2]
[336758265,1725102640666,-1000.0,0.0002497,2]
[336758266,1725102640675,-1000.0,0.0002497,2]
[336758267,1725102640685,-1000.0,0.0002497,2]
[336758268,1725102640697,-500.0,0.0002497,2]
[336758269,1725102640707,-1000.0,0.0002497,2]
[336758270,1725102640717,-500.0,0.0002497,2]
[336758271,1725102640726,-1000.0,0.0002497,2]
[336758272,1725102640735,-500.0,0.0002497,2]
[336758273,1725102640745,-711.29728565,0.0002497,2]
[336758274,1725102640754,-152.18704204,0.00024988,61]
[336758275,1725102640763,-1604.11752924,0.00024989,10]
[336758276,1725102640772,-7012.97615018,0.0002499,5]
[336758277,1725102640781,-239.64,0.0002499,2]
[336758278,1725102640790,-151.78296136,0.00024999,2]
[336758279,1725102640799,-4289.21106857,0.00025,2]
[336758280,1725102640808,-1636043.10427267,0.00025,15]
[336758281,1725102640816,-1329378.09187991,0.00025,2]
[336758282,1725102640824,-8432798.7196542,0.00025,2]
[336758283,1725102640882,-25542.18993968,0.00025,2]
[336758348,1725102646489,-424.135,0.00025,2]
[336758368,1725102865129,210.71,0.00010959,2]
[336758370,1725103585524,186.55,0.00010959,2]
[336758373,1725103725876,-2905.53992136,0.00010997,2]
[336758374,1725103725899,-501.2709439,0.00010999,2]
[336758375,1725103725924,-202.74,0.00011,2]
[336758376,1725103725948,-82740.44913474,0.00011,2]
[336758383,1725103831449,-156.9,0.0001099,2]
[336758384,1725103831458,-1132.165259,0.00010997,2]
[336758385,1725103831475,-1516.45208888,0.00010997,2]
[336758386,1725103831497,-594.65420573,0.00010997,2]
[336758387,1725103831584,-1108.19691343,0.00010997,2]
[336758388,1725103831609,-1017.18465923,0.00010997,2]
[336758389,1725103831618,-16682.75131267,0.00011,2]
[336758393,1725103837548,-300.32,0.00011,2]
[336758394,1725103837559,-775.44461026,0.00011,2]
[336758395,1725103837576,-479.23585153,0.00011,2]
[336758396,1725103837588,-500.0,0.00011,2]
[336758397,1725103837599,-5314.22404625,0.00011,2]
[336758398,1725103837688,-24059.66385186,0.00011,2]
[336758399,1725103837769,-371.939179,0.00011,2]
[336758400,1725103837792,-1856.5631075,0.00011,2]
[336758401,1725103837803,-17996.72186206,0.00011,2]
[336758402,1725103837814,-1656.96940033,0.00011,2]
[336758403,1725103837826,-496.804842,0.00011,2]
[336758404,1725103837839,-488.75,0.00011,2]
[336758405,1725103837867,-519.980028,0.00011,2]
[336758406,1725103837879,-586.27968751,0.00011,2]
[336758407,1725103837967,-5310.80960306,0.00011,2]
[336758408,1725103837979,-440.1604635,0.00011,2]
[336758411,1725103839597,-3110.31175049,0.00011,2]
[336758412,1725103839610,-14967.60539131,0.00011,2]
[336758413,1725103839621,-218597.78794076,0.00011,2]
[336758414,1725103839634,-270.59,0.00011,2]
[336758415,1725103839734,-610.01890766,0.00011,2]
[336758416,1725103839746,-253.25625982,0.00011,2]
[336758417,1725103839765,-1149551.06373549,0.00011,2]
[336758418,1725103839774,-542.2853238,0.000137,2]
[336758419,1725103839784,-156.58741464,0.000138,2]
[336758420,1725103839793,-378.19791124,0.000138,2]
[336758421,1725103839803,-214434.403628,0.000139,3]
[336758422,1725103839812,-6793.31007371,0.00015,2]
[336758423,1725103839822,-815.01910367,0.0002,30]
[336758424,1725103839831,-150.99,0.0002,2]
[336758425,1725103839840,-634.55,0.00020747,2]
[336758426,1725103839850,-4164.0,0.000209,2]
[336758427,1725103839864,-499.99,0.000209,2]
[336758428,1725103839875,-332.45,0.00022649,2]
[336758429,1725103839884,-200.0,0.00022758,2]
[336758430,1725103839894,-1000.0,0.00022808,2]
[336758431,1725103839904,-534.22,0.00022808,2]
[336758432,1725103839914,-262.4,0.00022829,2]
[336758433,1725103839923,-250.0,0.00022897,2]
[336758434,1725103839935,-200.0,0.00022944,2]
[336758435,1725103839945,-258.85,0.00022944,30]
[336758436,1725103839955,-250.0,0.00022949,2]
[336758437,1725103839967,-634.55,0.0002301,2]
[336758438,1725103839977,-150.15,0.00023019,2]
[336758439,1725103839987,-152.95,0.0002312,2]
[336758441,1725103839995,-152.95,0.00023137,2]
[336758443,1725103840005,-152.95,0.00023153,2]
[336758445,1725103840014,-152.95,0.0002317,2]
[336758446,1725103840023,-152.95,0.00023186,2]
[336758448,1725103840032,-152.95,0.00023203,2]
[336758450,1725103840042,-152.95,0.00023219,2]
[336758452,1725103840051,-517.3,0.00023227,2]
[336758454,1725103840060,-250.0,0.00023228,2]
[336758456,1725103840069,-152.95,0.00023236,2]
[336758458,1725103840078,-1002.53811158,0.000233,2]
[336758460,1725103840089,-420.14,0.00023313,2]
[336758462,1725103840099,-178.8,0.00023377,2]
[336758464,1725103840108,-172.0,0.00023422,2]
[336758466,1725103840118,-161.42,0.00023429,2]
[336758468,1725103840127,-167.0,0.00023441,2]
[336758469,1725103840136,-2751.0,0.0002345,2]
[336758470,1725103840146,-1143.0,0.00023518,2]
[336758471,1725103840156,-565.636,0.00023518,2]
[336758472,1725103840165,-506.175,0.00023518,2]
[336758473,1725103840174,-447.0,0.00023518,2]
[336758474,1725103840184,-623.0,0.00023518,2]
[336758475,1725103840193,-11101.206,0.00023518,2]
[336758476,1725103840202,-930.0,0.00023518,2]
[336758477,1725103840211,-556.0,0.00023518,2]
[336758478,1725103840220,-810.0,0.00023518,2]
[336758479,1725103840230,-3000.0,0.000236,2]
[336758480,1725103840239,-9877.10730692,0.0002388,2]
[336758481,1725103840248,-775.86767115,0.00024,10]
[336758482,1725103840257,-2266.00111561,0.00024,2]
[336758483,1725103840266,-1000.0,0.000241,2]
[336758484,1725103840275,-167.28,0.00024191,2]
[336758485,1725103840284,-1435.36616,0.0002475,2]
[336758486,1725103840293,-500.0,0.00024796,2]
[336758487,1725103840302,-844.813692,0.000248,2]
[336758488,1725103840504,-7500.0,0.000249,2]
[336758489,1725103840514,-2253.09211837,0.000249,60]
[336758490,1725103840523,-152.83558693,0.000249,2]
[336758491,1725103840533,-7238.12709536,0.000249,2]
[336758492,1725103840542,-156.58741463,0.000249,2]
[336758493,1725103840551,-500.0,0.00024923,2]
[336758494,1725103840560,-257.97818004,0.00024999,2]
[336758495,1725103840570,-500.0,0.00024999,2]
[336758496,1725103840579,-158.74249287,0.00025,2]
[336758497,1725103840588,-3216.90830142,0.00025,2]
[336758498,1725103840597,-1017357.97781227,0.00025,15]
[336758499,1725103840606,-2197827.18899188,0.00025,2]
[336758500,1725103840618,-17726.74951739,0.00025,2]
[336758506,1725103842579,-2650.0,0.00025,2]
[336758511,1725103843964,-3225636.63944849,0.00025,2]
[336758512,1725103843986,-1230.0,0.00025,2]
[336758513,1725103843997,-3125.5,0.00025,2]
[336758514,1725103844008,-12507.718291,0.00025,2]
[336758515,1725103844027,-750.19055916,0.00025,2]
[336758516,1725103845536,-3073.95446271,0.00025,2]
[336758517,1725103845569,-5986.007952,0.00025,2]
[336758518,1725103845581,-50373.454827,0.00025,2]
[336758519,1725103845595,-3634.67232653,0.00025,2]
[336758520,1725103845610,-2650.0,0.00025,2]
[336758521,1725104056845,158.07,0.00010959,2]
[336758522,1725104495980,-300.0,0.00019725,2]
[336758523,1725104520357,-3700.0,0.000213,5]
[336758524,1725104576329,168.86,0.00010959,2]
[336758541,1725105031551,-397.92779334,0.000199,5]
[336758543,1725105031605,-478.59396333,0.000199,5]
[336758544,1725105031616,-6930.47824333,0.000199,5]
[336758545,1725105031626,-595.17,0.00021266,2]
[336758546,1725105031636,-3000.0,0.000222,2]
[336758547,1725105031645,-250.0,0.00023107,2]
[336758548,1725105031656,-3393.18683747,0.00023137,62]
[336758549,1725105031675,-1836.39289519,0.00023137,62]
[336758550,1725105031687,-979.68026734,0.00023137,62]
[336758551,1725105031696,-100.14871144,0.00023142,2]
[336758552,1725105031708,-109.92128856,0.00023142,2]
[336758553,1725105031717,-1901.54,0.00023169,2]
[336758554,1725105031727,-250.0,0.0002319,2]
[336758555,1725105031736,-200.0,0.00023201,2]
[336758556,1725105031745,-150.0,0.00023205,2]
[336758557,1725105031755,-161.42,0.0002321,2]
[336758558,1725105031764,-499.99,0.0002321,2]
[336758559,1725105031774,-1000.0,0.00023229,2]
[336758560,1725105031783,-250.0,0.00023229,2]
[336758561,1725105031793,-150.15,0.00023236,2]
[336758562,1725105031802,-240.36,0.000233,30]
[336758563,1725105031812,-431.08,0.00023364,2]
[336758564,1725105031821,-595.17,0.00023529,2]
[336758566,1725105031831,-152.0,0.00023586,3]
[336758568,1725105031840,-217.2,0.00023951,2]
[336758570,1725105031850,-1136.1811013,0.00024218,2]
[336758572,1725105031861,-122.8188987,0.00024218,2]
[336758574,1725105031870,-623.0,0.00024218,2]
[336758576,1725105031879,-447.0,0.00024218,2]
[336758578,1725105031889,-193.1811013,0.00024218,2]
[336758580,1725105031904,-1350.8188987,0.00024218,2]
[336758582,1725105031913,-930.0,0.00024218,2]
[336758584,1725105031923,-810.0,0.00024218,2]
[336758586,1725105031932,-556.0,0.00024218,2]
[336758588,1725105031943,-552.0,0.00024218,2]
[336758590,1725105031952,-1897.0,0.00024218,2]
[336758592,1725105031961,-1143.0,0.00024218,2]
[336758594,1725105031971,-240.0,0.00024218,2]
[336758596,1725105031980,-289.0,0.00024218,2]
[336758597,1725105031989,-1212.194,0.00024218,2]
[336758598,1725105031998,-200.0,0.00024218,2]
[336758599,1725105032008,-190.924,0.00024218,2]
[336758600,1725105032017,-1077.0,0.00024218,2]
[336758601,1725105032027,-150.647,0.00024218,2]
[336758602,1725105032036,-152.0,0.00024493,4]
[336758603,1725105032045,-500.0,0.00024729,2]
[336758604,1725105032054,-324.0634,0.000249,2]
[336758605,1725105032064,-4772.7127,0.000249,2]
[336758606,1725105032074,-174.68941142,0.000249,2]
[336758607,1725105032083,-3000.0,0.000249,2]
[336758608,1725105032093,-2612.9765,0.000249,2]
[336758609,1725105032102,-3169.827,0.000249,2]
[336758610,1725105032111,-152.67384192,0.000249,2]
[336758611,1725105032120,-160.095168,0.00024973,2]
[336758612,1725105032129,-5994.25193068,0.0002498,2]
[336758613,1725105032139,-16515.49054778,0.0002499,5]
[336758614,1725105032151,-6454.06317084,0.0002499,5]
[336758615,1725105032162,-4488.51016078,0.0002499,5]
[336758616,1725105032171,-82374.1916382,0.0002499,5]
[336758617,1725105032180,-200.0,0.0002499,15]
[336758618,1725105032189,-8595.28783479,0.00024997,2]
[336758619,1725105032200,-2183.73155231,0.00024997,2]
[336758620,1725105032209,-4845.6678679,0.00024998,2]
[336758621,1725105032219,-9615.5068378,0.00024998,2]
[336758622,1725105032228,-263.7824215,0.00024998,2]
[336758623,1725105032237,-5545.850309,0.00024998,2]
[336758624,1725105032246,-321.99545336,0.00024999,2]
[336758625,1725105032255,-150.51745403,0.00024999,2]
[336758626,1725105032265,-2412.68122607,0.00025,2]
[336758627,1725105032274,-57642.56774803,0.00025,2]
[336758628,1725105032289,-851.45896926,0.00025,2]
[336758629,1725105032301,-500.0,0.00025,2]
[336758630,1725105032312,-393.3952172,0.00025,2]
[336758631,1725105032331,-479.84771151,0.00025,2]
[336758632,1725105032342,-4196.36686604,0.00025,2]
[336758633,1725105032357,-724.79191887,0.00025,2]
[336758634,1725105032368,-786.76387106,0.00025,2]
[336758635,1725105032380,-4869.87206032,0.00025,2]
[336758636,1725105032391,-20639.62038323,0.00025,2]
[336758637,1725105037632,-364.091493,0.000249,2]
[336758638,1725105037642,-538.06114018,0.00025,2]
[336758639,1725105037653,-23568.01753923,0.00025,2]
[336758640,1725105037665,-2564.7511365,0.00025,2]
[336758641,1725105037677,-1829.04126315,0.00025,2]
[336758830,1725105040050,-720.62291816,0.00025,2]
[336758833,1725105040062,-974.16207443,0.00025,2]
[336758835,1725105040074,-399.08923112,0.00025,2]
[336758836,1725105040086,-726.22550044,0.00025,2]
[336758837,1725105040097,-845.57482597,0.00025,2]
[336758838,1725105040116,-1264.34197672,0.00025,2]
[336758839,1725105040131,-1307.74999999,0.00025,2]
[336758840,1725105040143,-1481.25692794,0.00025,2]
[336758841,1725105040154,-37186.13093925,0.00025,2]
[336758842,1725105040166,-3100.0,0.00025,2]
[336758845,1725105040178,-7102.99562553,0.00025,2]
[336758847,1725105040189,-701.89106013,0.00025,2]
[336758849,1725105040201,-5696.0751405,0.00025,2]
[336758852,1725105040217,-5403.3429348,0.00025,2]
[336758854,1725105040229,-2709.94494954,0.00025,2]
[336758856,1725105040239,-5197.57096875,0.00025,2]
[336758858,1725105040250,-4583.2606,0.00025,2]
[336758860,1725105040262,-28426.72578627,0.00025,2]
[336758864,1725105040287,-689.29651803,0.00025,2]
[336758866,1725105040299,-1677.23111753,0.00025,2]
[336758868,1725105040310,-3974.5,0.00025,2]
[336758870,1725105040321,-449.59669731,0.00025,2]
[336758908,1725105040687,-383.0020099,0.00025,15]
[336758913,1725105040719,-160.49620808,0.00025,15]
[336758916,1725105040738,-354.16960267,0.00025,15]
[336758918,1725105040750,-250.13277065,0.00025,15]
[336758920,1725105040762,-7651.91581175,0.00025,15]
[336758922,1725105040775,-1325.57743907,0.00025,15]
[336758925,1725105040790,-380.40225828,0.00025,15]
[336758927,1725105040801,-4523.00843903,0.00025,15]
[336758929,1725105040812,-549.42325983,0.00025,15]
[336758931,1725105040823,-588.209208,0.00025,15]
[336758933,1725105040834,-285476.38391534,0.00025,15]
[336758935,1725105040845,-1358.27907488,0.00025,15]
[336758937,1725105040856,-639.6,0.00025,15]
[336758939,1725105040867,-1994.5,0.00025,15]
[336758941,1725105040878,-9136.42063367,0.00025,15]
[336758943,1725105040890,-338.805,0.00025,15]
[336758947,1725105040919,-617.90060439,0.00025,15]
[336758957,1725105041007,-324767.21156993,0.00025,15]
[336758959,1725105041016,-7075339.10944385,0.00025,2]
[336758962,1725105041027,-66415.4347615,0.00025,2]
[336758964,1725105041041,-191375.39769062,0.00025,2]
[336758966,1725105041052,-17973.69064023,0.00025,2]
[336758968,1725105041063,-8405.759899,0.00025,2]
[336758970,1725105041075,-9837.1995,0.00025,2]
[336758972,1725105041086,-890.90712876,0.00025,2]
[336758975,1725105041097,-11126.05861829,0.00025,2]
[336758977,1725105041109,-1279.32942339,0.00025,2]
[336758979,1725105041120,-347.03345074,0.00025,2]
[336759124,1725105042604,-3878.69,0.00025,2]
[336759127,1725105042616,-10620.16901075,0.00025,2]
[336759129,1725105042627,-2759.5004898,0.00025,2]
[336759132,1725105042658,-14606.66820628,0.00025,2]
[336759133,1725105042669,-880.8,0.00025,2]
[336759134,1725105042717,-263.95605343,0.00025,2]
[336759135,1725105042728,-300.0,0.00025,2]
[336759136,1725105042739,-673.14206966,0.00025,2]
[336759137,1725105042750,-412.640001,0.00025,2]
[336759138,1725105042761,-23124.19703968,0.00025,2]
[336759139,1725105042771,-500.0,0.00025,2]
[336759140,1725105042784,-1233.86,0.00025,2]
[336759141,1725105042795,-28853.42073815,0.00025,2]
[336759142,1725105042805,-9040.40493919,0.00025,2]
[336759260,1725105044082,-3684.56922428,0.00025,2]
[336759262,1725105044093,-5024.77761419,0.00025,2]
[336759264,1725105044105,-942.66174752,0.00025,2]
[336759293,1725105044372,-10661.10414044,0.00025,2]
[336759295,1725105044384,-23489.6,0.00025,2]
[336759298,1725105044395,-770.0000003,0.00025,2]
[336759300,1725105044407,-605.67743131,0.00025,2]
[336759312,1725105044514,-3484.0,0.00025,2]
[336759314,1725105044525,-938.72103182,0.00025,2]
[336759316,1725105044536,-537.16417105,0.00025,2]
[336759318,1725105044547,-337.27249606,0.00025,2]
[336759320,1725105044558,-572.21,0.00025,2]
[336759322,1725105044570,-305.17413868,0.00025,2]
[336759325,1725105044581,-801.46196804,0.00025,2]
[336759327,1725105044591,-11375.99063748,0.00025,2]
[336759329,1725105044602,-3224.73762716,0.00025,2]
[336759331,1725105044617,-12480.0,0.00025,2]
[336759334,1725105044628,-500.0,0.00025,2]
[336759437,1725105045571,-670.56,0.00025,2]
[336759440,1725105045583,-456.95008335,0.00025,2]
[336759444,1725105045594,-24663.59404774,0.00025,2]
[336759448,1725105045626,-2076.50488726,0.00025,2]
[336759449,1725105045637,-27493.91517875,0.00025,2]
[336759450,1725105045648,-495.28749195,0.00025,2]
[336759451,1725105045660,-26977.16239601,0.00025,2]
[336759452,1725105045672,-585.22668101,0.00025,2]
[336759453,1725105045683,-1346.51356479,0.00025,2]
[336759454,1725105045694,-55517.20631792,0.00025,2]
[336759455,1725105045705,-8891.41429007,0.00025,2]
[336759456,1725105045716,-151629.01495672,0.00025,2]
[336759457,1725105045728,-5278.19478437,0.00025,2]
[336759458,1725105045739,-55793.29305409,0.00025,2]
[336759459,1725105045750,-25096.90873033,0.00025,2]
[336759460,1725105045761,-25653.73937548,0.00025,2]
[336759461,1725105045772,-67370.818044,0.00025,2]
[336759462,1725105045786,-213609.06577852,0.00025,2]
[336759463,1725105045800,-11056.36999511,0.00025,2]
[336759464,1725105045811,-343.68665496,0.00025,2]
[336759465,1725105045822,-852.18109769,0.00025,2]
[336759466,1725105045839,-300.0,0.00025,2]
[336759467,1725105045851,-12555.64182341,0.00025,2]
[336759468,1725105045861,-267.22567297,0.00025,2]
[336759469,1725105045874,-4717.28541024,0.00025,2]
[336759470,1725105045886,-2285.84891763,0.00025,2]
[336759471,1725105045910,-250.0,0.00024218,2]
[336759472,1725105045920,-2825.0,0.00025,2]
[336759473,1725105045931,-515.83635347,0.00025,2]
[336759474,1725105045942,-18687.90820847,0.00025,2]
[336759475,1725105045953,-451.23409272,0.00025,2]
[336759476,1725105045964,-4429.53046187,0.00025,2]
[336759477,1725105045976,-400.57,0.00025,2]
[336759478,1725105045988,-755.02521014,0.00025,2]
[336759490,1725105327764,156.62,0.00010959,2]
[336759491,1725105785826,213.6,0.00010959,2]
[336759497,1725106231759,-597.59441939,0.000111,2]
[336759498,1725106231770,-394.37558061,0.000111,2]
[336759499,1725106231782,-173.55877246,0.000186,2]
[336759500,1725106231793,-2314.61,0.000187,7]
[336759501,1725106231802,-558.33,0.00021024,2]
[336759502,1725106231813,-1867.3332,0.000219,2]
[336759503,1725106231822,-378.9839934,0.000219,2]
[336759504,1725106231842,-506.25091406,0.000219,2]
[336759505,1725106231851,-478.15884645,0.00022,2]
[336759506,1725106231862,-405.84115355,0.00022,2]
[336759507,1725106231872,-294.15884645,0.00022,20]
[336759508,1725106231957,-965.84115354,0.00022,20]
[336759509,1725106231967,-3000.0,0.000227,2]
[336759510,1725106231977,-499.99,0.000227,2]
[336759511,1725106231986,-150.15,0.00022761,2]
[336759512,1725106231996,-250.0,0.00022854,2]
[336759513,1725106232006,-277.04,0.00022883,2]
[336759514,1725106232015,-210.07,0.00022889,2]
[336759515,1725106232025,-800.0,0.0002289,2]
[336759516,1725106232034,-250.0,0.00022891,2]
[336759517,1725106232044,-39.61891801,0.00022902,30]
[336759518,1725106232056,-183.57108199,0.00022902,30]
[336759519,1725106232066,-250.0,0.00022953,2]
[336759520,1725106232075,-200.0,0.00022997,2]
[336759521,1725106232085,-253.36,0.00023047,2]
[336759522,1725106232094,-359.23,0.00023153,2]
[336759524,1725106232104,-254.14334251,0.00023288,2]
[336759526,1725106232116,-304.18665749,0.00023288,2]
[336759528,1725106232127,-170.0,0.00023403,2]
[336759530,1725106232137,-167.0,0.00023591,2]
[336759531,1725106232147,-200.0,0.00023837,2]
[336759533,1725106232156,-1983.95,0.00024,14]
[336759534,1725106232165,-263.382,0.00024218,2]
[336759535,1725106232174,-170.211,0.00024218,2]
[336759537,1725106232184,-201.139,0.00024218,2]
[336759539,1725106232193,-150.137,0.00024218,2]
[336759540,1725106232202,-552.0,0.00024218,2]
[336759541,1725106232212,-183.3,0.00024588,2]
[336759542,1725106232221,-166.39250321,0.000249,2]
[336759543,1725106232230,-467.13787371,0.000249,2]
[336759544,1725106232239,-500.0,0.00024945,2]
[336759545,1725106232248,-600.0,0.00024967,2]
[336759546,1725106232258,-500.0,0.00024987,2]
[336759547,1725106232268,-152.81,0.0002499,2]
[336759548,1725106232277,-152.81,0.0002499,2]
[336759549,1725106232286,-103.09556267,0.0002499,2]
[336759550,1725106232301,-49.71443733,0.0002499,2]
[336759551,1725106232311,-152.81,0.0002499,2]
[336759552,1725106232322,-152.81,0.0002499,2]
[336759553,1725106232331,-152.81,0.0002499,2]
[336759554,1725106232341,-152.81,0.0002499,2]
[336759555,1725106232351,-152.81,0.0002499,2]
[336759556,1725106232360,-152.81,0.0002499,2]
[336759557,1725106232369,-152.81,0.0002499,2]
[336759558,1725106232379,-152.81,0.0002499,2]
[336759559,1725106232389,-152.81,0.0002499,2]
[336759560,1725106232399,-152.81,0.0002499,2]
[336759561,1725106232408,-152.81,0.0002499,2]
[336759562,1725106232417,-152.81,0.0002499,2]
[336759563,1725106232427,-152.81,0.0002499,2]
[336759564,1725106232437,-152.81,0.0002499,2]
[336759565,1725106232446,-152.81,0.0002499,2]
[336759566,1725106232455,-152.81,0.0002499,2]
[336759567,1725106232464,-152.81,0.0002499,2]
[336759568,1725106232475,-152.81,0.0002499,2]
[336759569,1725106232484,-152.81,0.0002499,2]
[336759570,1725106232494,-152.81,0.0002499,2]
[336759571,1725106232503,-152.81,0.0002499,2]
[336759572,1725106232513,-152.81,0.0002499,2]
[336759573,1725106232522,-152.81,0.0002499,2]
[336759574,1725106232532,-152.81,0.0002499,2]
[336759575,1725106232542,-152.81,0.0002499,2]
[336759576,1725106232552,-152.81,0.0002499,2]
[336759577,1725106232563,-152.81,0.0002499,2]
[336759578,1725106232573,-152.81,0.0002499,2]
[336759579,1725106232583,-152.81,0.0002499,2]
[336759580,1725106232592,-152.81,0.0002499,2]
[336759581,1725106232601,-152.81,0.0002499,2]
[336759582,1725106232611,-152.81,0.0002499,2]
[336759583,1725106232621,-500.32556267,0.00024991,2]
[336759584,1725106232633,-1099.67443733,0.00024991,2]
[336759585,1725106232642,-372.47178457,0.00024998,2]
[336759586,1725106232689,-1163.61475187,0.00024998,2]
[336759587,1725106232701,-343.79525606,0.00024998,2]
[336759588,1725106232711,-3872.87784922,0.00024998,2]
[336759589,1725106232724,-1767.74,0.00024998,2]
[336759590,1725106232747,-361.36554768,0.00024998,2]
[336759591,1725106232759,-3673.0185904,0.00024998,2]
[336759592,1725106232768,-826.9814096,0.00024998,2]
[336759593,1725106232792,-341.34701288,0.00024998,2]
[336759600,1725106237871,-710.86453492,0.00024998,2]
[336759601,1725106237881,-4354.33456508,0.00024998,2]
[336759602,1725106237892,-474.2466,0.00024998,2]
[336759603,1725106237976,-2361.57202904,0.00024998,2]
[336759604,1725106238189,-1191.05324988,0.00024998,2]
[336759605,1725106238199,-1809.51091955,0.00025,2]
[336759606,1725106238208,-5811.84764848,0.00025,15]
[336759683,1725106239875,-1844.94999997,0.00025,15]
[336759684,1725106239942,-50152.70180402,0.00025,15]
[336759685,1725106240050,-274.46,0.00025,15]
[336759686,1725106240061,-959.24343264,0.00025,15]
[336759687,1725106240073,-2408.76417884,0.00025,15]
[336759688,1725106240104,-222171.35066025,0.00025,15]
[336759689,1725106240200,-14721.09369351,0.00025,15]
[336759690,1725106240213,-7419.21920943,0.00025,15]
[336759712,1725106242880,-150.0,0.00024589,2]
[336759713,1725106242889,-161.42,0.00024627,2]
[336759714,1725106242899,-94.65,0.00025,15]
[336759715,1725106242910,-500.0,0.00025,15]
[336759716,1725106242921,-763.43869,0.00025,15]
[336759720,1725106244865,-561.01467486,0.00025,15]
[336759721,1725106244876,-1539.9164539,0.00025,15]
[336759722,1725106244887,-3792.97760677,0.00025,15]
[336759723,1725106244897,-268.02886842,0.00025,15]
[336759724,1725106244909,-267.96731775,0.00025,15]
[336759725,1725106244927,-686.6132303,0.00025,15]
[336759726,1725106244938,-906.17357973,0.00025,15]
[336759727,1725106244949,-686.77,0.00025,15]
[336759728,1725106245005,-20809.1764867,0.00025,15]
[336759729,1725106245016,-28676.9,0.00025,15]
[336759730,1725106245026,-34860.0,0.00025,15]
[336759731,1725106245046,-421.401,0.00025,15]
[336759733,1725106245964,-403.739,0.00025,15]
[336759734,1725106246018,-47205.54089909,0.00025,15]
[336759740,1725106269065,-25780.00000044,0.00025,15]
[336759742,1725106376476,150.0,0.0001,2]
[336759743,1725106423172,404.9074805,0.00024,120]
[336759744,1725106516643,5132.62998314,0.000109,2]
[336759745,1725106819547,161.63,0.00010959,2]
[336759749,1725107404597,15310.582146,0.0001,2]
[336759751,1725107422495,-198.39,0.000111,2]
[336759769,1725107432078,-462.92,0.000188,7]
[336759770,1725107432088,-514.8,0.00021232,2]
[336759771,1725107432098,-1360.62835547,0.00022,2]
[336759772,1725107432110,-2387.37164453,0.00022,2]
[336759773,1725107432120,-566.01441983,0.00022724,2]
[336759774,1725107432129,-252.73165157,0.00022824,2]
[336759775,1725107432298,-247.25834843,0.00022824,2]
[336759776,1725107432308,-150.30956468,0.00022834,2]
[336759777,1725107432320,-152.58043532,0.00022834,2]
[336759778,1725107432330,-200.0,0.00022898,2]
[336759779,1725107432339,-150.15,0.00022924,2]
[336759781,1725107432349,-4867.8359689,0.00022975,2]
[336759782,1725107432358,-200.0,0.00023,2]
[336759784,1725107432369,-230.86,0.00023041,2]
[336759785,1725107432379,-202.69,0.00023061,2]
[336759786,1725107432389,-150.0,0.00023131,2]
[336759787,1725107432398,-250.0,0.00023131,2]
[336759789,1725107432408,-250.0,0.00023135,2]
[336759790,1725107432417,-150.0,0.00023145,2]
[336759791,1725107432427,-150.0,0.0002316,2]
[336759792,1725107432436,-150.0,0.00023174,2]
[336759793,1725107432446,-150.0,0.00023189,2]
[336759794,1725107432455,-250.0,0.00023198,2]